bitfinex/quotes_SOLUSD_20230110
["timestamp","ask_amount","ask_price","bid_price","bid_amount"]
[1673337362683,19.00061681,15.902,15.89,20.0]
[1673337362897,19.00061681,15.902,15.891,36.39]
[1673337363089,19.00061681,15.902,15.892,20.0]
[1673337363837,1.92,15.901,15.894,20.0]
[1673337364150,20.92061681,15.901,15.894,20.0]
[1673337364590,19.00061681,15.901,15.894,20.0]
[1673337364767,20.0,15.906,15.894,20.0]
[1673337365188,20.0,15.906,15.893,36.25]
[1673337365412,19.00061681,15.905,15.893,36.25]
[1673337366447,18.92,15.904,15.894,20.0]
[1673337366775,19.00061681,15.903,15.894,20.0]
[1673337367100,1.92,15.902,15.894,20.0]
[1673337367496,19.00061681,15.901,15.894,20.0]
[1673337367707,1.92,15.9,15.893,36.25]
[1673337368126,19.00061681,15.901,15.894,20.0]
[1673337368350,20.0,15.906,15.894,20.0]
[1673337368762,19.00061681,15.905,15.894,20.0]
[1673337369939,1.92,15.904,15.894,20.0]
[1673337370343,19.00061681,15.903,15.894,20.0]
[1673337370557,1.92,15.902,15.894,20.0]
[1673337370880,19.00061681,15.901,15.894,20.0]
[1673337371405,1.92,15.902,15.894,20.0]
[1673337371406,67.17,15.907,15.894,20.0]
[1673337371615,19.00061681,15.903,15.894,20.0]
[1673337372879,1.92,15.902,15.894,20.0]
[1673337373190,67.16,15.909,15.894,20.0]
[1673337373397,19.00061681,15.903,15.896,20.0]
[1673337375178,19.00061681,15.903,15.894,20.0]
[1673337375389,1.92,15.902,15.894,20.0]
[1673337375599,0.96,15.902,15.894,20.0]
[1673337375818,20.92061681,15.902,15.894,20.0]
[1673337376347,0.96,15.901,15.894,20.0]
[1673337377823,0.96,15.9,15.894,20.0]
[1673337378217,0.96,15.9,15.893,36.2]
[1673337378440,19.96061681,15.9,15.891,118.5501]
[1673337378649,0.96,15.899,15.891,118.5501]
[1673337378866,0.96,15.898,15.891,118.5501]
[1673337379058,19.96061681,15.898,15.891,118.5501]
[1673337379389,19.96061681,15.897,15.891,118.5501]
[1673337379602,0.96,15.896,15.891,118.5501]
[1673337380226,0.96,15.896,15.892,20.0]
[1673337381905,0.96,15.897,15.892,20.0]
[1673337382118,0.96,15.898,15.892,20.0]
[1673337382326,19.00061681,15.896,15.892,20.0]
[1673337383502,1.681e-05,15.9,15.892,20.0]
[1673337383701,114.9585,15.912,15.893,36.35]
[1673337383900,26.74,15.91,15.894,20.0]
[1673337384099,26.74,15.91,15.895,36.35]
[1673337384437,20.0,15.909,15.896,20.0]
[1673337384955,20.0,15.907,15.896,20.0]
[1673337385688,20.0,15.907,15.895,36.35]
[1673337385882,20.0,15.909,15.895,36.35]
[1673337386096,20.0,15.909,15.896,20.0]
[1673337386299,479.9916961,15.934,15.9,26.74]
[1673337386300,19.00061681,15.914,15.9,26.74]
[1673337386521,52.3966433,15.928,15.901,36.14]
[1673337386734,32.3966433,15.928,15.901,38.06]
[1673337386948,26.72,15.93,15.902,31.3308873]
[1673337386949,47.11,15.927,15.902,31.3308873]
[1673337387163,47.1,15.929,15.903,38.06]
[1673337387477,20.0,15.928,15.91,26.58]
[1673337387790,47.1,15.929,15.911,70.1408873]
[1673337387998,47.1,15.929,15.911,87.1408873]
[1673337388213,47.1,15.929,15.913,20.0]
[1673337388415,47.1,15.929,15.914,52.8]
[1673337388628,20.0,15.932,15.915,20.0]
[1673337388844,47.09,15.931,15.916,35.8]
[1673337389157,47.09,15.933,15.916,35.8]
[1673337389797,20.0,15.932,15.916,35.8]
[1673337390005,47.09,15.931,15.916,35.8]
[1673337390723,18.92,15.93,15.917,20.0]
[1673337391581,1.92,15.93,15.918,35.66]
[1673337392620,20.0,15.929,15.916,114.9308]
[1673337392832,1.92,15.928,15.916,114.9308]
[1673337393892,1.92,15.928,15.917,35.67]
[1673337394737,67.09,15.932,15.917,35.67]
[1673337394949,20.0,15.932,15.917,35.67]
[1673337395254,47.08,15.937,15.92,26.65]
[1673337395451,47.07,15.939,15.921,35.66]
[1673337395666,27.05,15.94,15.921,51.06268049]
[1673337395877,27.05,15.94,15.922,15.40268049]
[1673337396094,27.05,15.94,15.923,35.66]
[1673337396290,27.05,15.94,15.924,20.0]
[1673337396622,27.05,15.94,15.925,153.0768]
[1673337396814,18.92,15.939,15.925,153.0768]
[1673337399043,18.92,15.939,15.926,20.0]
[1673337399356,1.92,15.939,15.927,35.42]
[1673337399881,17.0,15.94,15.927,35.42]
[1673337400081,20.0,15.939,15.927,35.42]
[1673337400697,20.0,15.94,15.927,35.42]
[1673337400913,17.0,15.939,15.927,35.42]
[1673337401449,1.92,15.938,15.927,35.42]
[1673337402826,21.92,15.938,15.927,35.42]
[1673337403140,17.0,15.937,15.926,35.4]
[1673337403353,1.92,15.936,15.926,35.4]
[1673337410084,20.0,15.94,15.926,35.4]
[1673337410296,20.0,15.94,15.927,20.0]
[1673337410486,20.0,15.94,15.928,35.4]
[1673337411029,20.0,15.94,15.929,20.0]
[1673337411342,20.0,15.939,15.929,20.0]
[1673337411555,20.0,15.939,15.928,35.4]
[1673337411556,20.0,15.942,15.928,35.4]
[1673337412077,20.0,15.941,15.928,35.4]
[1673337412270,21.92,15.94,15.929,20.0]
[1673337412475,21.92,15.94,15.93,35.37]
[1673337412807,20.0,15.939,15.93,35.37]
[1673337413006,1.92,15.94,15.93,35.37]
[1673337413215,20.0,15.942,15.93,35.37]
[1673337413427,20.0,15.943,15.93,35.37]
[1673337413638,20.0,15.942,15.931,17.0]
[1673337415213,20.0,15.944,15.932,20.0]
[1673337415442,47.05,15.946,15.932,20.0]
[1673337415638,26.88,15.94,15.928,35.33]
[1673337415848,20.0,15.938,15.927,115.3162]
[1673337416369,39.00061681,15.938,15.927,115.3162]
[1673337416576,19.00061681,15.938,15.927,115.3162]
[1673337416806,1.92,15.937,15.927,115.3162]
[1673337417021,1.92,15.937,15.928,20.0]
[1673337418366,1.92,15.937,15.929,17.0]
[1673337423199,1.92,15.937,15.924,35.39]
[1673337423530,1.92,15.937,15.923,20.0]
[1673337423741,20.0,15.936,15.924,35.48]
[1673337423950,17.96,15.935,15.924,35.48]
[1673337424171,0.96,15.934,15.924,35.48]
[1673337424375,0.96,15.933,15.924,35.48]
[1673337424587,0.96,15.932,15.923,35.48]
[1673337424780,0.96,15.931,15.923,35.48]
[1673337425749,0.96,15.931,15.924,20.0]
[1673337425968,0.96,15.931,15.925,35.48]
[1673337427554,0.96,15.931,15.924,55.48]
[1673337429333,27.87,15.93,15.924,20.0]
[1673337429532,84.1,15.929,15.914,144.5057]
[1673337429742,1.92,15.928,15.914,144.5057]
[1673337430379,21.92,15.928,15.914,144.5057]
[1673337430587,17.0,15.927,15.914,144.5057]
[1673337430805,1.92,15.926,15.915,17.0]
[1673337431125,21.92,15.926,15.915,17.0]
[1673337431857,21.92,15.926,15.914,144.5057]
[1673337432287,17.0,15.925,15.914,108.9157]
[1673337432492,0.96,15.924,15.914,108.9157]
[1673337432802,0.96,15.923,15.914,108.9157]
[1673337433001,0.96,15.922,15.914,108.9157]
[1673337433208,0.96,15.921,15.906,35.77]
[1673337433434,0.96,15.92,15.906,35.77]
[1673337433842,0.96,15.919,15.906,35.77]
[1673337434062,0.96,15.918,15.906,35.77]
[1673337434253,0.96,15.917,15.906,35.77]
[1673337435011,0.96,15.917,15.907,17.0]
[1673337435221,0.96,15.917,15.908,35.76]
[1673337435754,0.96,15.916,15.906,35.84]
[1673337435967,0.96,15.915,15.907,17.0]
[1673337436273,0.96,15.915,15.908,35.84]
[1673337437745,0.96,15.914,15.908,35.84]
[1673337437948,0.96,15.914,15.906,35.84]
[1673337438369,0.96,15.913,15.905,144.1475]
[1673337438576,0.96,15.912,15.905,144.1475]
[1673337438810,0.96,15.911,15.905,108.2975]
[1673337439732,0.96,15.911,15.906,20.0]
[1673337439945,0.96,15.912,15.906,20.0]
[1673337440158,20.0,15.919,15.906,55.93]
[1673337440370,20.0,15.919,15.907,17.0]
[1673337441853,1.92,15.918,15.908,20.0]
[1673337442370,18.92,15.918,15.906,55.93]
[1673337442590,18.92,15.918,15.906,35.93]
[1673337442775,20.0,15.917,15.906,35.93]
[1673337442985,17.96,15.916,15.906,35.93]
[1673337443195,0.96,15.915,15.905,144.1775]
[1673337443425,0.96,15.914,15.905,108.2975]
[1673337443666,0.96,15.913,15.905,108.2975]
[1673337443845,0.96,15.912,15.905,144.1775]
[1673337444056,0.96,15.911,15.905,108.2975]
[1673337444376,0.96,15.91,15.905,108.2975]
[1673337449312,0.96,15.91,15.906,20.0]
[1673337450362,0.96,15.911,15.906,20.0]
[1673337450573,20.0,15.917,15.906,20.0]
[1673337450776,46.79,15.92,15.907,35.98]
[1673337450984,26.79,15.92,15.907,35.98]
[1673337451302,20.0,15.918,15.908,20.0]
[1673337451828,1.92,15.917,15.908,20.0]
[1673337452050,18.92,15.917,15.908,20.0]
[1673337453003,0.96,15.917,15.908,20.0]
[1673337453189,17.96,15.918,15.908,20.0]
[1673337453400,20.0,15.919,15.908,20.0]
[1673337454255,20.0,15.921,15.908,36.60489391]
[1673337454463,20.0,15.92,15.908,36.60489391]
[1673337454675,20.0,15.919,15.906,55.98]
[1673337454877,18.92,15.918,15.906,55.98]
[1673337455412,20.0,15.917,15.906,55.98]
[1673337455622,1.92,15.916,15.906,55.98]
[1673337457285,1.92,15.916,15.907,17.0]
[1673337457503,20.0,15.919,15.908,55.9]
[1673337459303,47.11,15.926,15.91,26.65]
[1673337459504,20.0,15.926,15.912,20.0]
[1673337459707,20.0,15.926,15.913,52.72]
[1673337459922,20.0,15.926,15.914,20.0]
[1673337460665,1.92,15.925,15.914,20.0]
[1673337461072,32.3966433,15.948,15.92,134.41]
[1673337461392,26.74,15.95,15.93,26.97]
[1673337461598,79.78976236,15.946,15.93,26.97]
[1673337461814,47.04,15.948,15.931,17.0]
[1673337462019,79.78976236,15.953,15.931,17.0]
[1673337462231,20.0,15.951,15.933,20.0]
[1673337462471,20.0,15.949,15.931,16.60489391]
[1673337462799,20.0,15.947,15.93,26.97]
[1673337462993,47.05,15.946,15.93,26.97]
[1673337463205,20.0,15.945,15.93,26.97]
[1673337463528,47.06,15.944,15.93,26.97]
[1673337463727,47.06,15.944,15.931,17.0]
[1673337463935,47.06,15.944,15.93,26.97]
[1673337464144,47.06,15.944,15.926,35.2]
[1673337464355,99.78976236,15.943,15.927,17.0]
[1673337464583,47.06,15.942,15.927,17.0]
[1673337464793,47.06,15.942,15.927,20.0]
[1673337465198,37.0,15.941,15.927,20.0]
[1673337465622,1.92,15.94,15.927,20.0]
[1673337465834,1.92,15.94,15.926,55.2]
[1673337466163,21.92,15.94,15.927,17.0]
[1673337466370,20.0,15.939,15.927,17.0]
[1673337466690,1.92,15.938,15.927,17.0]
[1673337468059,1.92,15.938,15.927,37.0]
[1673337468364,1.92,15.938,15.927,17.0]
[1673337469611,20.0,15.94,15.928,35.41]
[1673337469818,20.0,15.941,15.929,17.0]
[1673337470039,20.0,15.941,15.93,35.41]
[1673337470250,40.0,15.945,15.93,35.41]
[1673337470553,20.0,15.943,15.93,35.41]
[1673337470780,20.0,15.942,15.93,35.41]
[1673337471190,20.0,15.942,15.93,16.60489391]
[1673337472027,20.0,15.942,15.929,35.35]
[1673337472239,18.92,15.941,15.929,35.35]
[1673337472472,20.0,15.94,15.929,35.35]
[1673337472679,1.92,15.939,15.929,35.35]
[1673337472877,1.92,15.939,15.927,35.36]
[1673337473089,1.92,15.939,15.928,20.0]
[1673337473300,67.06,15.942,15.929,35.35]
[1673337473624,20.0,15.942,15.93,20.0]
[1673337473838,20.0,15.942,15.929,35.35]
[1673337474243,20.0,15.941,15.928,20.0]
[1673337474452,20.0,15.941,15.929,17.0]
[1673337474784,0.96,15.94,15.929,17.0]
[1673337474971,1.92,15.94,15.929,17.0]
[1673337475495,18.92,15.94,15.927,35.36]
[1673337475711,20.0,15.939,15.927,35.36]
[1673337475922,1.92,15.938,15.926,55.38]
[1673337476890,1.92,15.938,15.927,17.0]
[1673337478357,1.92,15.938,15.928,20.0]
[1673337478542,1.92,15.938,15.928,55.41]
[1673337478754,20.0,15.941,15.929,17.0]
[1673337478990,20.0,15.941,15.928,20.0]
[1673337479827,0.96,15.94,15.928,20.0]
[1673337480048,0.96,15.939,15.927,35.41]
[1673337480227,20.96,15.939,15.928,20.0]
[1673337480558,0.96,15.938,15.928,20.0]
[1673337484134,0.96,15.938,15.926,55.4]
[1673337485924,0.96,15.937,15.927,17.0]
[1673337486151,0.96,15.936,15.928,20.0]
[1673337486549,0.96,15.936,15.926,35.4]
[1673337486768,0.96,15.935,15.927,20.0]
[1673337486977,0.96,15.934,15.927,20.0]
[1673337489835,0.96,15.933,15.927,20.0]
[1673337491086,0.96,15.934,15.926,20.0]
[1673337491278,0.96,15.932,15.926,20.0]
[1673337491701,0.96,15.933,15.926,20.0]
[1673337491923,0.96,15.932,15.926,20.0]
[1673337493278,0.96,15.931,15.925,118.1896]
[1673337493491,0.96,15.932,15.926,20.0]
[1673337495504,0.96,15.933,15.926,20.0]
[1673337495901,0.96,15.933,15.925,118.1896]
[1673337496117,0.96,15.932,15.926,20.0]
[1673337496745,0.96,15.931,15.926,20.0]
[1673337497500,0.96,15.931,15.923,20.0]
[1673337497812,0.96,15.93,15.923,20.0]
[1673337498024,0.96,15.929,15.923,20.0]
[1673337500534,0.96,15.928,15.923,20.0]
[1673337501601,0.96,15.928,15.92,109.3529]
[1673337501910,20.0,15.931,15.92,20.0]
[1673337502106,20.0,15.929,15.92,20.0]
[1673337502317,67.1,15.93,15.92,20.0]
[1673337502528,1.92,15.929,15.92,20.0]
[1673337502753,21.92,15.929,15.919,116.7537]
[1673337503161,21.92,15.929,15.92,17.0]
[1673337503392,21.92,15.929,15.919,116.7537]
[1673337503913,21.92,15.929,15.92,20.0]
[1673337504859,1.92,15.929,15.92,20.0]
[1673337505171,20.0,15.93,15.92,20.0]
[1673337506117,20.0,15.929,15.89,26.87]
[1673337506427,134.49,15.92,15.905,115.1468]
[1673337506638,85.09,15.919,15.905,115.1468]
[1673337506831,0.96,15.918,15.905,164.12268231]
[1673337507036,48.1,15.917,15.905,115.1468]
[1673337507269,17.96,15.916,15.905,115.1468]
[1673337507472,48.1,15.915,15.905,115.1468]
[1673337507681,0.96,15.914,15.905,115.1468]
[1673337507895,47.14,15.917,15.905,115.1468]
[1673337508099,18.92,15.916,15.905,115.1468]
[1673337508939,20.0,15.915,15.905,115.1468]
[1673337509159,1.92,15.914,15.905,115.1468]
[1673337509371,49.06,15.914,15.905,115.1468]
[1673337511252,68.06061681,15.914,15.905,115.1468]
[1673337511467,20.0,15.913,15.9,20.0]
[1673337511670,1.92,15.912,15.901,137.0207]
[1673337511886,1.92,15.912,15.902,20.0]
[1673337512619,1.92,15.912,15.901,137.0207]
[1673337512831,18.92,15.912,15.901,137.0207]
[1673337514525,18.92,15.912,15.902,20.0]
[1673337516628,1.92,15.912,15.902,20.0]
[1673337517151,20.92061681,15.912,15.902,20.0]
[1673337517479,1.92,15.912,15.902,20.0]
[1673337519571,1.92,15.912,15.901,137.0207]
[1673337519788,21.92,15.912,15.901,137.0207]
[1673337520002,19.00061681,15.911,15.901,137.0207]
[1673337520214,1.92,15.91,15.901,137.0207]
[1673337521273,47.16,15.909,15.899,36.0]
[1673337521467,18.92,15.908,15.899,36.0]
[1673337521676,67.17,15.907,15.899,36.0]
[1673337521887,20.0,15.905,15.899,36.0]
[1673337522098,18.92,15.904,15.892,113.4732]
[1673337522304,47.18,15.903,15.892,113.4732]
[1673337522538,0.96,15.902,15.892,113.4732]
[1673337522727,0.96,15.902,15.888,111.6147]
[1673337522728,134.37,15.9,15.893,55.16005876]
[1673337523046,47.19,15.899,15.881,277.7504966]
[1673337523258,21.92,15.898,15.882,20.0]
[1673337523455,64.2,15.897,15.882,20.0]
[1673337523666,21.92,15.896,15.882,20.0]
[1673337523878,47.2,15.895,15.882,20.0]
[1673337524097,1.92,15.894,15.882,20.0]
[1673337525764,49.12,15.894,15.882,20.0]
[1673337526521,1.92,15.894,15.882,20.0]
[1673337527560,20.92061681,15.894,15.882,20.0]
[1673337527770,68.12061681,15.894,15.882,20.0]
[1673337528205,20.0,15.893,15.882,20.0]
[1673337528408,1.92,15.892,15.882,20.0]
[1673337533037,47.2,15.897,15.882,20.0]
[1673337534404,1.92,15.896,15.882,20.0]
[1673337534615,47.2,15.895,15.882,20.0]
[1673337534825,1.92,15.894,15.882,20.0]
[1673337538937,47.21,15.893,15.882,20.0]
[1673337539146,1.92,15.892,15.882,20.0]
[1673337541455,0.96,15.892,15.882,20.0]
[1673337541675,47.19,15.899,15.888,20.0]
[1673337543248,20.0,15.898,15.888,20.0]
[1673337543460,20.0,15.898,15.882,20.0]
[1673337543461,20.0,15.896,15.882,20.0]
[1673337543964,49.12,15.895,15.882,20.0]
[1673337544180,26.99,15.9,15.882,20.0]
[1673337544495,20.0,15.899,15.888,20.0]
[1673337545222,20.0,15.898,15.884,20.0]
[1673337545436,20.0,15.898,15.888,17.0]
[1673337545671,1.92,15.897,15.884,20.0]
[1673337551214,1.92,15.897,15.888,17.0]
[1673337552475,0.96,15.897,15.888,17.0]
[1673337552708,1.92,15.898,15.888,17.0]
[1673337553461,0.96,15.898,15.888,17.0]
[1673337553868,1.92,15.898,15.888,17.0]
[1673337554403,0.96,15.898,15.888,17.0]
[1673337554600,47.18,15.902,15.889,40.0]
[1673337554806,1.92,15.901,15.889,171.28064283]
[1673337555330,1.92,15.901,15.89,17.0]
[1673337555560,1.92,15.901,15.891,20.0]
[1673337556613,1.92,15.901,15.89,20.0]
[1673337557228,26.91,15.9,15.889,115.6049]
[1673337557538,20.0,15.898,15.889,115.6049]
[1673337557749,64.2,15.897,15.889,115.6049]
[1673337558071,0.96,15.896,15.887,24.5140025]
[1673337558274,0.96,15.895,15.887,24.5140025]
[1673337558487,48.16,15.895,15.887,24.5140025]
[1673337558696,0.96,15.894,15.887,24.5140025]
[1673337559008,0.96,15.893,15.887,24.5140025]
[1673337559240,0.96,15.892,15.887,24.5140025]
[1673337559426,0.96,15.893,15.887,24.5140025]
[1673337559641,0.96,15.894,15.887,24.5140025]
[1673337559857,0.96,15.893,15.887,24.5140025]
[1673337560095,0.96,15.892,15.887,24.5140025]
[1673337562710,48.17,15.892,15.887,24.5140025]
[1673337562902,0.96,15.892,15.887,24.5140025]
[1673337566395,47.2,15.895,15.887,24.5140025]
[1673337566577,1.92,15.894,15.887,24.5140025]
[1673337571339,47.2,15.897,15.887,24.5140025]
[1673337571540,1.92,15.896,15.887,24.5140025]
[1673337573219,1.92,15.896,15.888,20.0]
[1673337575776,47.2,15.895,15.888,20.0]
[1673337575988,1.92,15.894,15.888,20.0]
[1673337577136,20.0,15.907,15.889,20.0]
[1673337577356,20.0,15.907,15.89,18.92]
[1673337577757,47.17,15.906,15.891,15.68748193]
[1673337577967,47.17,15.906,15.892,18.92]
[1673337578202,47.17,15.906,15.893,20.0]
[1673337578509,47.17,15.906,15.894,17.0]
[1673337578698,47.17,15.907,15.894,17.0]
[1673337578904,47.17,15.907,15.895,20.0]
[1673337579536,47.16,15.908,15.895,20.0]
[1673337579759,0.96,15.907,15.896,115.6819]
[1673337579952,1.92,15.907,15.897,20.0]
[1673337580692,1.92,15.907,15.896,115.6819]
[1673337580920,21.92,15.907,15.896,115.6819]
[1673337581137,21.92,15.907,15.897,15.68748193]
[1673337581534,1.92,15.907,15.897,20.0]
[1673337586176,20.0,15.918,15.897,35.68748193]
[1673337586496,20.0,15.918,15.899,20.0]
[1673337586701,20.0,15.918,15.9,20.0]
[1673337586910,47.14,15.917,15.901,38.92]
[1673337587114,47.14,15.917,15.903,20.0]
[1673337587744,47.14,15.917,15.905,20.0]
[1673337587959,47.14,15.917,15.906,17.0]
[1673337588785,1.92,15.916,15.906,17.0]
[1673337588997,47.14,15.915,15.906,17.0]
[1673337589215,1.92,15.914,15.906,17.0]
[1673337589730,1.92,15.914,15.904,110.0489]
[1673337590381,47.15,15.913,15.904,110.0489]
[1673337590583,1.92,15.914,15.905,20.0]
[1673337591008,1.92,15.914,15.906,17.0]
[1673337592586,1.92,15.914,15.904,110.0489]
[1673337593742,1.92,15.914,15.905,20.0]
[1673337593953,1.92,15.914,15.906,17.0]
[1673337594163,21.92,15.914,15.904,110.0489]
[1673337594783,1.92,15.914,15.904,110.0489]
[1673337594996,1.92,15.914,15.905,20.0]
[1673337596356,1.92,15.914,15.904,110.0489]
[1673337596891,1.92,15.914,15.905,20.0]
[1673337598986,1.92,15.914,15.902,126.58948193]
[1673337599203,47.15,15.913,15.902,110.902]
[1673337599413,38.92,15.912,15.902,110.902]
[1673337599636,67.15,15.911,15.902,110.902]
[1673337599827,21.92,15.91,15.902,110.902]
[1673337600160,67.16,15.909,15.902,110.902]
[1673337600479,1.92,15.908,15.902,110.902]
[1673337600905,1.92,15.908,15.903,20.0]
[1673337604361,1.92,15.908,15.903,35.68748193]
[1673337605413,1.92,15.908,15.903,20.0]
[1673337605621,17.0,15.912,15.903,20.0]
[1673337605814,20.0,15.919,15.903,20.0]
[1673337606240,47.14,15.917,15.903,20.0]
[1673337606878,20.0,15.916,15.902,86.9904454]
[1673337607078,67.14,15.915,15.902,86.9904454]
[1673337607289,67.14,15.915,15.899,20.0]
[1673337607516,67.14,15.915,15.897,20.0]
[1673337607712,67.14,15.915,15.896,115.6819]
[1673337607916,38.92,15.914,15.896,115.6819]
[1673337608127,26.69,15.91,15.896,115.6819]
[1673337608352,86.08,15.909,15.891,15.69495366]
[1673337608548,190.63396037,15.909,15.887,24.5140025]
[1673337608751,26.9,15.9,15.887,24.5140025]
[1673337608982,106.11,15.899,15.887,24.5140025]
[1673337609313,19.00061681,15.898,15.887,24.5140025]
[1673337609505,65.16,15.897,15.887,24.5140025]
[1673337609714,20.96,15.896,15.887,24.5140025]
[1673337609947,65.16,15.895,15.887,24.5140025]
[1673337610140,0.96,15.894,15.887,24.5140025]
[1673337610351,48.17,15.893,15.887,24.5140025]
[1673337610673,0.96,15.892,15.887,24.5140025]
[1673337610892,48.17,15.891,15.887,24.5140025]
[1673337611086,0.96,15.89,15.887,24.5140025]
[1673337611528,47.21,15.893,15.887,24.5140025]
[1673337611835,47.2,15.897,15.887,24.5140025]
[1673337612571,47.19,15.898,15.887,24.5140025]
[1673337612761,47.19,15.898,15.888,20.0]
[1673337614035,20.0,15.899,15.888,20.0]
[1673337614252,20.0,15.9,15.888,20.0]
[1673337614462,67.19,15.899,15.888,20.0]
[1673337614777,20.0,15.899,15.887,24.5140025]
[1673337614989,20.0,15.899,15.888,17.0]
[1673337615936,1.92,15.898,15.888,17.0]
[1673337616339,27.01,15.91,15.889,1.92]
[1673337616553,27.01,15.91,15.89,20.0]
[1673337616764,27.01,15.91,15.891,139.2053]
[1673337616765,19.00061681,15.908,15.891,139.2053]
[1673337616974,20.0,15.905,15.892,20.0]
[1673337617810,20.0,15.905,15.893,1.92]
[1673337618647,47.17,15.906,15.892,20.0]
[1673337619832,47.16,15.908,15.893,1.92]
[1673337620259,47.16,15.908,15.892,20.0]
[1673337620476,20.0,15.907,15.892,20.0]
[1673337620668,47.17,15.906,15.892,20.0]
[1673337621189,47.17,15.906,15.893,18.92]
[1673337621396,1.92,15.905,15.893,17.0]
[1673337622366,0.96,15.905,15.894,0.96]
[1673337622577,47.16,15.908,15.894,20.96]
[1673337622788,1.92,15.907,15.894,20.0]
[1673337623104,47.17,15.906,15.894,20.0]
[1673337623298,1.92,15.905,15.894,20.0]
[1673337623509,1.92,15.905,15.895,17.0]
[1673337624361,0.96,15.905,15.895,17.0]
[1673337624885,47.16,15.908,15.895,17.0]
[1673337625094,1.92,15.907,15.895,17.0]
[1673337625426,47.17,15.906,15.895,17.0]
[1673337625822,47.16,15.908,15.896,1.92]
[1673337626033,47.16,15.909,15.896,1.92]
[1673337626874,26.81,15.91,15.896,1.92]
[1673337627078,20.0,15.909,15.897,20.0]
[1673337627284,20.0,15.909,15.898,1.92]
[1673337628573,20.0,15.909,15.894,20.0]
[1673337628773,20.0,15.909,15.895,1.92]
[1673337629492,20.0,15.909,15.895,18.92]
[1673337629700,20.0,15.909,15.895,20.738]
[1673337630561,20.0,15.909,15.896,20.0]
[1673337630774,20.0,15.909,15.897,4.189]
[1673337630985,47.15,15.911,15.898,17.0]
[1673337631199,47.15,15.913,15.899,40.0]
[1673337631413,1.92,15.912,15.9,18.92]